Cogmind - Beta 13 @@@ ROGUE MODE // 2024.07.19 @ 00:44:10 Player: lyrabold Result: Self-destructed Performance ------------- Evolutions (1) 500 Regions Visited (2) 400 Robots Destroyed (27) 135 Value Destroyed (539) 539 Prototype IDs (0) 0 Alien Tech Used (0) 0 Bonus (0) 0 TOTAL SCORE: 1574 Bonus ------- None Cogmind --------- Core Integrity 344/400 Matter 297/300 Energy 100/100 System Corruption 0% Temperature Cool (0) Movement Core (50) Location -9/Materials Parts ------- > --- POWER (1) -------- (None) > --- PROPULSION (3) --- Light Treads > --- UTILITY (3) ------ Hacking Suite > --- WEAPON (2) ------- Medium Laser Light Assault Rifle > --- INVENTORY (5) ---- Ion Engine Spread Laser Grenade Launcher Mining Laser Peak State ------------ > --- POWER ------------ (None) > --- PROPULSION ------- Light Treads Light Treads > --- UTILITY ---------- Hacking Suite > --- WEAPON ----------- Medium Laser Light Assault Rifle > --- INVENTORY -------- Ion Engine Spread Laser Grenade Launcher Mining Laser [Rating: 7] Favorites ----------- Power Ion Engine Engine Ion Engine Propulsion Light Treads Treads Light Treads Utility Seismic Detector Device Seismic Detector Hackware Hacking Suite Weapon Assault Rifle Energy Gun Medium Laser Ballistic Gun Assault Rifle Launcher Grenade Launcher Special Weapon Mining Laser Build | -11 -10 -9 ------- Run | Yrd Mat Mat Slots Evolved 2 | . . 2 Power . | . . . Propulsion 1 | . . 1 Utility 1 | . . 1 Weapon . | . . . Parts Attached 18 | 4 6 8 Power 1 | . 1 . Engine 1 | . 1 . Core . | . . . Reactor . | . . . Propulsion 4 | 2 . 2 Treads 4 | 2 . 2 Leg . | . . . Wheel . | . . . Hover . | . . . Flight . | . . . Utility 2 | 1 . 1 Device 1 | 1 . . Storage . | . . . Processor . | . . . Hackware 1 | . . 1 Protection . | . . . Artifact . | . . . Weapon 11 | 1 5 5 Energy Gun 3 | . . 3 Energy Cannon . | . . . Ballistic Gun 4 | 1 2 1 Ballistic Cannon . | . . . Launcher 1 | . . 1 Special Weapon 3 | . 3 . Impact Weapon . | . . . Slashing Weapon . | . . . Piercing Weapon . | . . . Special Melee Weapon . | . . . Unidentified Prototypes . | . . . Parts Lost 6 | . 1 5 Power . | . . . Propulsion 3 | . . 3 Utility 1 | . 1 . Weapon 2 | . . 2 Highest Loss Streak 3 | . 1 3 To Critical Strikes . | . . . Average Slot Usage (%) 53 | . 58 45 Engine 2 | . 3 . Treads 26 | . 28 24 Device 3 | . 5 . Hackware 1 | . . 3 Energy Gun 3 | . . 7 Ballistic Gun 15 | . 19 9 Naked Turns . | . . . Heaviest Build 9 | 3 9 5 Greatest Support 40 | 40 40 40 Greatest Overweight (x) 2 | . 2 1 Average Overweight (x) . | . . . Largest Inventory Capacity 5 | 5 5 5 Average Capacity 5 | 5 5 5 Most Carried 5 | 3 5 5 Average Carried 3 | 2 4 4 Final Capacity 5 | 5 5 5 Final Carried 5 | 3 5 4 Class Distribution -------------------- 100% | Mutant Dominant Class ---------------- Mutant | -10/Materials Mutant | -9/Materials Resources | -11 -10 -9 ----------- Run | Yrd Mat Mat Matter Collected 606 | 306 77 223 Remotely . | . . . Salvage Created 781 | 126 249 406 Parts 61 | 12 19 30 Haulers Intercepted 1 | . 1 . Recyclers Shooed 1 | 1 . . Parts Field Recycled . | . . . Retrieved Matter . | . . . Parts Self-Destructed . | . . . Prevented . | . . . Kills | -11 -10 -9 ------- Run | Yrd Mat Mat Combat Hostiles Destroyed 16 | . 6 10 Guns 12 | . 6 6 AOE 4 | . . 4 Classes Destroyed 8 | 2 3 3 Tunneler 3 | 3 . . Hauler 1 | . 1 . Recycler 2 | 1 . 1 Operator 3 | . . 3 Watcher 2 | . . 2 Swarmer 7 | . 3 4 Grunt 7 | . 3 4 Sentry 2 | . . 2 Best Kill Streak 6 | 3 6 6 Combat Bots Only 6 | . 6 4 Max Kills in Single Turn 3 | 1 1 3 Gunslinging . | . . . Exploded 3 | . . 3 Melee . | . . . Uniques/NPCs Destroyed . | . . . Combat | -11 -10 -9 -------- Run | Yrd Mat Mat Hostile Shots Fired 113 | . 41 72 Missed 40 | . 17 23 Damage Taken 877 | . 248 629 Core 89 | . 33 56 Absorbed by Shields . | . . . Core Remaining (%) 93 | 100 86 . Volleys Fired 110 | 26 37 47 Largest 2 | 1 2 2 Hottest 115 | 20 100 115 Shots Fired 151 | 26 60 65 Gun 145 | 26 56 63 Cannon . | . . . Launcher 2 | . . 2 Special 4 | . 4 . Kinetic 110 | 26 56 28 Thermal 39 | . 4 35 Explosive 2 | . . 2 Electromagnetic . | . . . Robot Hit Streak 18 | 10 7 18 Robot Miss Streak 4 | 2 3 4 Penetration Max . | . . . Secondary Targets 2 | . 1 1 Max Gunslinging Chain 1 | . 1 1 Shots Hit Robots 94 | 18 32 44 Core Hits 46 | 5 13 28 Critical Kills . | . . . Critical Parts Destroyed . | . . . Critical Strikes 3 | . . 3 Burn 3 | . . 3 Melee Attacks . | . . . Impact . | . . . Slashing . | . . . Piercing . | . . . Sneak Attacks . | . . . Combat Hostiles . | . . . Follow-up Attacks . | . . . Damage Inflicted 1336 | 202 390 744 Guns 1122 | 202 383 537 Cannons . | . . . Explosions 205 | . . 205 Melee . | . . . Ramming 9 | . 7 2 Kinetic 780 | 202 383 195 Thermal 342 | . . 342 Explosive 205 | . . 205 Electromagnetic . | . . . Impact . | . . . Slashing . | . . . Piercing . | . . . Highest Corruption . | . . . Average Corruption . | . . . Corruption Purged . | . . . Corruption Blocked . | . . . Overload Shots . | . . . Overflow Damage . | . . . Projectiles . | . . . Explosions . | . . . Melee . | . . . Knockbacks . | . . . Impact . | . . . Kinetic . | . . . Secondary . | . . . Self-Inflicted Damage . | . . . Shots . | . . . Rammed 5 | . 3 2 Targets Rammed 7 | . 3 4 Kicked . | . . . Crushed 2 | . . 2 Highest Temperature 108 | . 27 108 Average Temperature 30 | . 13 34 Received Heat Transfer 447 | . 75 372 Siege Activations . | . . . Robots Corrupted . | . . . Combat Hostiles . | . . . Parts Fried . | . . . Impact Corruptions . | . . . Robots Melted . | . . . Combat Hostiles . | . . . Parts Melted 4 | . . 4 Heat Transferred 1138 | . . 1138 Parts Sabotaged . | . . . Parts Stolen . | . . . Parts Stripped . | . . . Power Chain Reactions . | . . . Alert | -11 -10 -9 ------- Run | Yrd Mat Mat Peak Influence 420 | 20 302 420 Initial 42 | . 13 42 Average 152 | 10 163 197 Maximum Alert Level 2 | . 1 2 Low Security (%) 60 | 100 52 53 Level 1 37 | . 47 39 Level 2 2 | . . 6 Level 3 . | . . . Level 4 . | . . . Level 5 . | . . . High Security . | . . . Max Security . | . . . Squads Dispatched 4 | . 1 3 Investigation 1 | . . 1 Extermination . | . . . Reinforcement 3 | . 1 2 Assault . | . . . Garrison . | . . . Intercept . | . . . Searches Triggered . | . . . Construction Impeded . | . . . Haulers Reinforced . | . . . Active Scanning Responses . | . . . Cargo Convoy Interrupts . | . . . Stealth | -11 -10 -9 --------- Run | Yrd Mat Mat Distress Signals 4 | . 3 1 Communications Jammed . | . . . Distress Signals . | . . . Times Spotted 44 | . 16 28 Peak Tracking Total 8 | . 5 8 Tactical Retreats 5 | . 2 3 Traps | -11 -10 -9 ------- Run | Yrd Mat Mat Traps Triggered 1 | . . 1 Indirectly . | . . . Trap Hack Attempts . | . . . Triggered . | . . . Disarmed . | . . . Reprogrammed . | . . . Reused . | . . . Traps Extracted . | . . . Installed . | . . . Triggered . | . . . Machines | -11 -10 -9 ---------- Run | Yrd Mat Mat Machines Disabled . | . . . Max in Single Turn . | . . . Machines Repaired . | . . . Machines Dismantled . | . . . Machines Sabotaged . | . . . Overloaded Fab Kills . | . . . Hacking | -11 -10 -9 --------- Run | Yrd Mat Mat Machines Accessed 6 | . 3 3 Terminals 6 | . 3 3 Fabricators . | . . . Repair Stations . | . . . Recycling Units . | . . . Scanalyzers . | . . . Garrison Access . | . . . Total Hacks 13 | . 4 9 Successful 8 | . 4 4 Failed 5 | . . 5 Catastrophic . | . . . Database Lockouts . | . . . Manual 5 | . 2 3 Terminals 13 | . 4 9 Fabricators . | . . . Repair Stations . | . . . Recycling Units . | . . . Scanalyzers . | . . . Garrison Access . | . . . Terminal Hacks 6 | . 3 3 Branch Access Points 2 | . 1 1 Locate Traps 1 | . . 1 Hauler Manifests 2 | . 1 1 Zone Layout 1 | . 1 . Fabricator Hacks . | . . . Repair Station Hacks . | . . . Recycling Unit Hacks . | . . . Scanalyzer . | . . . Garrison Access Hacks . | . . . Unauthorized Hacks 2 | . 1 1 Terminals 2 | . 1 1 Operators 2 | . 1 1 Fabricators . | . . . Repair Stations . | . . . Recycling Units . | . . . Scanalyzers . | . . . Garrison Access . | . . . Data Cores Recovered . | . . . Used . | . . . Hacking Detections 3 | . 1 2 Full Trace Events 1 | . . 1 Feedback Events . | . . . Feedback Blocked . | . . . Robot Schematics Acquired . | . . . Robots Built . | . . . Authchips . | . . . Time . | . . . Total Robot Build Rating . | . . . Part Schematics Acquired . | . . . Parts Built . | . . . Authchips . | . . . Time . | . . . Total Part Build Rating . | . . . Parts Repaired . | . . . Time . | . . . Parts Recycled . | . . . Recycled Matter . | . . . Retrieved Matter . | . . . Retrieved Components . | . . . Parts Scanalyzed . | . . . Part Schematics Acquired . | . . . Parts Damaged . | . . . Bothacking | -11 -10 -9 ------------ Run | Yrd Mat Mat Used RIF Installer . | . . . Robots Hacked . | . . . Non-combat . | . . . Combat . | . . . Robot Hacks Applied . | . . . Relay Couplers Released . | . . . Fabnet Peak Effective % . | . . . Robots Rewired . | . . . Allies Hacked . | . . . Hacks Repelled . | . . . Allies | -11 -10 -9 -------- Run | Yrd Mat Mat Total Allies . | . . . Largest Group . | . . . Highest-Rated Group . | . . . Highest-Rated Ally . | . . . Total Orders . | . . . Ally Attacks . | . . . Total Damage . | . . . Kills . | . . . Allies Corrupted . | . . . Allies Melted . | . . . Intel | -11 -10 -9 ------- Run | Yrd Mat Mat Robot Analysis Total . | . . . Derelict Logs Recovered . | . . . Drone Launches . | . . . Drone Recoveries . | . . . Exploration | -11 -10 -9 ------------- Run | Yrd Mat Mat Turns Passed 839 | 131 400 308 Spaces Moved 896 | 69 479 348 Core 857 | 65 448 344 Treads 39 | 4 31 4 Legs . | . . . Wheels . | . . . Hover . | . . . Flight . | . . . Fastest Speed 50 | 50 50 50 Average Speed 55 | 56 57 51 Slowest Speed 160 | 160 160 160 Overloaded Moves . | . . . Propulsion Burnouts . | . . . Robots Hopped . | . . . Cave-ins Triggered . | . . . Exploration Rate (%) 41 | 5 80 38 Regions Visited 2 Branch Regions . Pre-discovered Areas . | . . . Known Exits Taken . | . . . Unknown Exits Taken 2 | 1 1 . Scrap Searched . | . . . Spaces Dug 3 | . 3 . Terrain Destroyed 13 | . 4 9 Melee . | . . . Projectile 4 | . 4 . AOE 9 | . . 9 Terrain Rammed . | . . . Walls Destroyed . | . . . Machines Disabled . | . . . Actions | -11 -10 -9 --------- Run | Yrd Mat Mat Total 1085 | 133 539 413 Wait 36 | 31 5 . Move 894 | 68 478 348 Hop . | . . . Pick Up 11 | 4 4 3 Fast Attach 5 | 3 1 1 Attach 12 | 1 4 7 Detach 7 | . 4 3 Swap 1 | . 1 . Drop 2 | . 2 . Fire 110 | 26 37 47 Melee . | . . . Ram . | . . . Kick . | . . . Crush 7 | . 3 4 Escape Stasis . | . . . Rewire . | . . . Trap . | . . . Miscellaneous . | . . . Route ------- -11/Scrapyard -10/Materials (discovered 5 exits: *Mat x3 / *Min x2) -9/Materials (discovered 5 exits: [*Mat x2] / Min / *Sto x2) History --------- Turn | Location | Event 14 | -11/Scrapyard | Discovered new exit (range 15) 132 | -11/Scrapyard | Entered Materials 306 | -10/Materials | Build established: Mutant 358 | -10/Materials | Discovered new exit (range 15) 399 | -10/Materials | Discovered new exit (range 15) 448 | -10/Materials | Discovered new exit (range 9) 450 | -10/Materials | Identified exit to Mines 532 | -10/Materials | Entered another Materials area 532 | -9/Materials | Evolved 2 slots: Propulsion x1, Utility x1 546 | -9/Materials | Discovered new exit (range 16) 571 | -9/Materials | Identified exit to Mines 571 | -9/Materials | Identified exit to Storage 678 | -9/Materials | Lost 3 parts (1n2w) 687 | -9/Materials | Discovered new exit (range 16) 801 | -9/Materials | Discovered new exit (range 7) 840 | -9/Materials | Self-destructed Last Messages --------------- 00840_ Connecting with Terminal... >>Manifests Retrieving manifest data... Found 6 haulers: A-02 Transporter 2x Lrg. Battery 2x Hrd. Light Armor Plating A-02 Transporter 3x Cargo Storage Unit A-02 Transporter 2x VTOL Module 4x Particle Gun A-02 Transporter 4x Imp. Medium Laser 2x Imp. Assault Rifle (2 escorts) A-02 Transporter 5x Hvy. Ion Engine A-02 Transporter 6x Hvy. Ion Engine Map ----- +----------------------------------------------------+ | ????????????????????????# #??# """"" #????? | | ??????????############### #??# """"" #????? | | ######???## [!! # #??# """"" #????? | | # #? """ [!! # #??# """ #????? | | # """ ## """ [! # #??# #????? | | # """ ## """ + #??##??######????? | | # """ ## # #????????????????? | | # ## # #????????????????? | | # """ ################ #????????????????? | | # """ #?????????????? #???????????????? | | + """ #?????????????# #???????????????? | | # #?????????????# > #???????????????? | | ####+#####?????????????# #???????????????? | | ## #???????????????# #???????????????? | | ## * #???????????????#######???????????????? | | #%$" #?????????????????????????????????????? | | # "%" #?????????????????????????????????????? | | ]# " #?????????????????????????????????????? | | ## ##?????????????????????????????????????? | | ?# #??????????????????????????????????????? | | ??# #??????????????????????????????????????? | | ??# #??????????????????????????????????????? | | ??# #????????????????????#####?????????????? | | ??# ########+########+### #?????????????? | | ### "T" #?????????????? | | @ #?????????????? | | ########+#######k #?????????????? | | ####### ## !!! #?????????????? | | ##+#### + ## !! #?????????????? | | ? ??# """ # ## !! #?????????????? | | ??# """ # ##k #?????????????? | | """??# """ ########## #?????????????? | | """??# """ # ##### ## #????????? | | """??# """ / #????????? | | ??# #! T #????????? | | #?????# ! # = ########## ##k###????????? | | ????##########+###?????????#+###? ???????????? | | ???# #?????????? ??? ??????????? | | ???# #??????????? #?????????????? | | ???# """ """ """ #???????????? #?????????????? | | ???# """ """ """ #???????????? #?????????????? | | ???? """ """ """ #?????????????#?????????????? | | ????? #???????????????????????????? | | ??????#?##########???????????????????????????? | | | | | | | | | | | | | +----------------------------------------------------+ Best States ------------- Heat Dissipation 28 Energy Generation 10 Energy Capacity 250 Matter Stores 300 Matter Capacity 300 Sight Range 16 Terrain Scan Density 10 Evasion (%) 50 Recoil Reduction 3 Offensive Hacking 10 Item Schematics ----------------- None Robot Schematics ------------------ None Fabricated ------------ Nothing Alien Tech Used ----------------- None Achievements -------------- None Challenges ------------ None Game ------ Seed MeleeCooledReactor Manual? 1 Play Time 00:14:18 Cumulative 534.9 hours Start 2024.07.19 @ 00:33:54 End 2024.07.19 @ 00:44:10 Sessions 1 Manual Loads 0 Difficulty Rogue Special Mode None Game No. 190 Rogue 190 Adventurer 0 Explorer 0 Win Type - Total 24 Types 8/1/5/3/1/0/5/1/0 Lore% 92 Gallery% 94 Achievement% 85 Wizard Run 0 Options --------- Layout 2 ASCII 0 Keyboard 1 Movement Arrows Keybinds 0 Fullscreen 2 Font 24/X11 Map View 50x44 Zoom Use 0% Tactical HUD 1 Map Filters NONE Filters NONE Steam 1 RUN: 9ce95101-839f-47d2-94ac-0ed6a9c98eec